Workbook

Sheet INTRO
C2: WELCOME TO THE COVID-19 E-FMLA CALCULATOR
C3: revised 08/21/2020
C4: Please check to see if the calculator has been updated at:
C5: https://www.sco.ca.gov/ppsd_efmla.html
C6: The E-FMLA calculator should always be used in conjunction with all applicable laws, rules and bargaining unit contracts.
C7: The E-FMLA calculator will automatically compute E-FMLA benefits (full & partial months) for fulltime and fractional civil service employees.
C8: The calculator also computes the regular pay and leave supplementation requirements based solely on the data entered by the user. Employment history and payment history information are not used by the calculator.
C9: The calculator can only compute benefits based on monthly salary rates.

Sheet ENTER
N1: Enter Employee Information
N2: -For monthly employees only-
H3: Employee Name: | X3: AWWS: | Z3: N/A
H5: Employee SSN: | X5: CBID:
H7: Unreduced Monthly Salary: | J7: 7000 | X7: Supplementation:
H9: Reduced Monthly Salary: | J9: 6353.9 | X9: TimeBase: | Z9: 1
H11: Pay Period: | J11: 2020-08-01 | X11: E-FMLA Received: | Z11: 0
P12: In the calendar below:
B13: 1. Click or click & drag top row of cells to toggle on/off E-FMLA days paid at 2/3 salary. Omit the first two weeks of E-FMLA (unpaid).
B14: 2. Edit worked hours by typing the desired number of hours.
B15: 3. Type the desired number of true dock hours into the true dock cells.
B16: 4. To manually reduce Supplementation, edit time in the Supp. Days & Hours boxes below. This will adjust the supplementation pay & benefit dock.
B18: 0 | C18: 1 | D18: 2 | E18: 3 | F18: 4 | G18: 5 | H18: 6 | I18: 7 | J18: 8 | K18: 9 | L18: 10 | M18: 11 | N18: 12 | O18: 13 | P18: 14 | Q18: 15 | R18: 16 | S18: 17 | T18: 18 | U18: 19 | V18: 20 | W18: 21 | X18: 22 | Y18: 23 | Z18: 24 | AA18: 25 | AB18: 26 | AC18: 27 | AD18: 28 | AE18: 29 | AF18: 30 | AG18: 31
B19: 31 | C19: 1 | D19: 2 | E19: 3 | F19: 4 | G19: 5 | H19: 6 | I19: 7 | J19: 8 | K19: 9 | L19: 10 | M19: 11 | N19: 12 | O19: 13 | P19: 14 | Q19: 15 | R19: 16 | S19: 17 | T19: 18 | U19: 19 | V19: 20 | W19: 21 | X19: 22 | Y19: 23 | Z19: 24 | AA19: 25 | AB19: 26 | AC19: 27 | AD19: 28 | AE19: 29 | AF19: 30 | AG19: 31
B20: 8 | C20: 0 | D20: 0 | E20: 8 | F20: 8 | G20: 8 | H20: 8 | I20: 8 | J20: 0 | K20: 0 | L20: 8 | M20: 8 | N20: 8 | O20: 0 | P20: 0 | Q20: 0 | R20: 0 | S20: 0 | T20: 0 | U20: 0 | V20: 0 | W20: 0 | X20: 0 | Y20: 0 | Z20: 0 | AA20: 0 | AB20: 0 | AC20: 0 | AD20: 0 | AE20: 0 | AF20: 0 | AG20: 0 | AH20: =EFMLA_Hours&" E-FMLA Hours" -> 72 E-FMLA Hours
B21: 0 | C21: 0 | D21: 0 | E21: 0 | F21: 0 | G21: 0 | H21: 0 | I21: 0 | J21: 0 | K21: 0 | L21: 0 | M21: 0 | N21: 0 | O21: 8 | P21: 8 | Q21: 0 | R21: 0 | S21: 8 | T21: 8 | U21: 8 | V21: 8 | W21: 8 | X21: 0 | Y21: 0 | Z21: 8 | AA21: 8 | AB21: 8 | AC21: 8 | AD21: 8 | AE21: 0 | AF21: 0 | AG21: 8 | AH21: =Worked_Hours&" Work/Holiday Hours" -> 104 Work/Holiday Hours
AH22: =DockHours&" True Dock Hours" -> 0 True Dock Hours
B23: Benefit Days & Hours | H23: ="Supp. Days & Hours" -> Supp. Days & Hours | P23: ="Benefit Dock Days & Hours" -> Benefit Dock Days & Hours | W23: Work/Hol. Days & Hours | AD23: True Dock Days & Hours
A24: Paid at unreduced monthly rate | H24: Paid at reduced monthly rate | P24: Docked at reduced monthly rate | W24: Paid at reduced monthly rate | AD24: Docked at reduced monthly rate
B25: =W36 -> 5 days, 5.26 hrs. | H25: 0 | J25: =IF(SuppTime_Days>1," days"," day") -> day | L25: 0 | N25: =IF(SuppTime_Hours=1," hr."," hrs.") -> hrs. | Q25: =IF(Gross_Salary="","",BDockDays_Hidden&IF(BDockDays_Hidden=1," day, "," days, ")&BDockHours_Hidden&IF(BDockHours_Hidden=1," hr."," hrs.")) -> 3 days, 2.74 hrs. | X25: =W43 -> 13 days, 0 hrs. | AE25: =W47 -> 0 days, 0 hrs.
B26: =AY148&AZ148 -> 45.26 hrs. | H26: =SuppTime_Days*(8*TimeBase)+SuppTime_Hours&IF(SuppTime_Days*(8*TimeBase)+SuppTime_Hours=1," hr."," hrs.") -> 0 hrs. | P26: =AY150&AZ150 -> 26.74 hrs. | X26: =Worked_Hours&AU133 -> 104 hrs. | AE26: =DockHours&AU117 -> 0 hrs.
B27: =IF(Benefit_Pay+Benefits_Paid>10000,"Total E-FMLA received will exceed $10,000. ","") ->  | H27: Note: Leave should be keyed in CLAS to the hundredth of an hour. | P27: Note: Dock should be keyed in DCK to the hundredth of an hour. | X27: ="AWW "&IF(AWWS_Offset_HoursTotal<0,"Excess Hours","Deficit Hours") -> AWW Deficit Hours
H28: =IF((AT146)+DockHours>IF(PayPeriodDays=22,(11*TimeBase*8),(10*TimeBase*8)),IF(PayPeriodDays=22,"Note: A 715 transaction will be required since the sum of benefit dock time and true dock time exceeds 11 days.","Note: A 715 transaction will be required since the sum of benefit dock time and true dock time exceeds 10 days."),"") ->  | X28: =AV68&AW68&ABS(AX68)&AY68 -> 0 days, 0 hrs.
X29: =ABS(AV69)&AW69 -> 0 hrs.
W30: =IF(AWWS_Offset_HoursTotal<0,"These excess hours go into the employee's leave bank."&CHAR(10)&"See CalHR Manual 1503","This must be used from the employee's leave bank."&CHAR(10)&"See CalHR Manual 1503") -> This must be used from the employee's leave bank. See CalHR Manual 1503
C32: E-FMLA | G32: Computation & Pay Period Hours Breakdown | W32: Days & Hours
F34: 2/3 Benefit | G34: =Hours_NotExceedingMax &IF(Hours_NotExceedingMax=1," hr."," hrs.")&" x (2/3)" -> 0 hrs. x (2/3) | K34: = | L34: =ROUNDDOWN(Hours_NotExceedingMax*2/3,5) & IF((ROUNDDOWN(Hours_NotExceedingMax*2/3,5))=1," hr."," hrs.") -> 0 hrs. | P34: ="÷ "&(8*TimeBase) -> ÷ 8 | Q34: = | R34: =ROUNDDOWN((Hours_NotExceedingMax*2/3)/(8*TimeBase),5)&IF(ROUNDDOWN((Hours_NotExceedingMax*2/3)/(8*TimeBase),5)=1," day"," days") -> 0 days | V34: = | W34: =IF(Gross_Salary="","",AW136& IF(AW136=1," day, "," days, ")&ROUND(AW139,4)& IF(AW139=1," hr."," hrs.")) -> 0 days, 0 hrs. | AC34: = | AD34: =Gross_Salary*TimeBase/PayPeriodDays/(8*TimeBase)*Hours_NotExceedingMax*2/3 -> 0
F35: Max Benefit* | G35: =ROUNDDOWN(Daily_max*2/3,3)&IF(ROUNDDOWN(Daily_max*2/3,3)=1," hr."," hrs.")&" x "&Days_ExceedingMax&IF(Days_ExceedingMax=1," day"," days") -> 5.028 hrs. x 9 days | K35: = | L35: =ROUNDDOWN(Daily_max*2/3*Days_ExceedingMax,5) & IF(ROUNDDOWN(Daily_max*2/3*Days_ExceedingMax,5)=1," hr."," hrs.") -> 45.25714 hrs. | P35: ="÷ "&(8*TimeBase) -> ÷ 8 | Q35: = | R35: =ROUNDDOWN(Daily_max*2/3*Days_ExceedingMax/(8*TimeBase),5)&IF(ROUNDDOWN(Daily_max*2/3*Days_ExceedingMax/(8*TimeBase),5)=1," day"," days") -> 5.65714 days | V35: = | W35: =IF(Gross_Salary="","",AY136& IF(AY136=1," day, "," days, ")&ROUND(AY139,4)& IF(AY139=1," hr."," hrs.")) -> 5 days, 5.2571 hrs. | AC35: = | AD35: =Gross_Salary*TimeBase/PayPeriodDays/(8*TimeBase)*(Daily_max*2/3*Days_ExceedingMax) -> 1800
F36: Benefit Total | W36: =IF(Gross_Salary="","",AY142 &IF(AY142=1," day, "," days, ") & AY145 & IF(AY145=1," hr."," hrs.")) -> 5 days, 5.26 hrs. | AC36: = | AD36: =Hourly_Rate*(AW143) -> 1800.113636 | AI36: Total Pay to issue:
AI37: =AD36+AD38+AD43+AD45 -> 5554.690909
F38: ="Supp." -> Supp. | G38: =IF(Custom_Supp,AT154&AT155,EFMLA_Hours&" - "&ROUND(AW142,3)&IF(ROUND(AW142,3)=1," hr."," hrs.")) -> 0 hrs. | K38: = | L38: =ROUNDDOWN(AT154,5)&AT155 -> 0 hrs. | P38: ="÷ "&(8*TimeBase) -> ÷ 8 | Q38: = | R38: =ROUND(AT154/(8*TimeBase),5)&IF(ROUND(AT154/(8*TimeBase),5)=1," day"," days") -> 0 days | V38: = | W38: =IF(Gross_Salary="","",SuppTime_Days&IF(SuppTime_Days=1," day, "," days, ")&SuppTime_Hours&IF(SuppTime_Hours=1," hr."," hrs.")) -> 0 days, 0 hrs. | AC38: = | AD38: =HourlyRate_ReducedReg*AY149 -> 0 | AQ38: =Gross_Salary*TimeBase -> 7000
F40: ="Benefit Dock" -> Benefit Dock | G40: =IF(Supp_State=FALSE,EFMLA_Hours&" - "&ROUND(AW142,3)&IF(ROUND(AW142,3)=1," hr."," hrs."),"") -> 72 - 45.257 hrs. | K40: =IF(Supp_State=FALSE,"=","") -> = | L40: =AT146&IF(AT146=1," hr."," hrs.") -> 26.74 hrs. | P40: ="÷ "&(8*TimeBase) -> ÷ 8 | Q40: = | R40: =ROUND(AT146/(8*TimeBase),4) &IF(ROUND(AT146/(8*TimeBase),4)=1," day"," days") -> 3.3425 days | V40: = | W40: =IF(Gross_Salary="","",BDockDays_Hidden&IF(BDockDays_Hidden=1," day, "," days, ")&BDockHours_Hidden&IF(BDockHours_Hidden=1," hr."," hrs.")) -> 3 days, 2.74 hrs. | AC40: = | AD40: =HourlyRate_ReducedReg*AT146 -> 965.3595795
F43: Wrk./Hol. | G43: =Worked_Hours & IF(Worked_Hours=1," hr."," hrs.") -> 104 hrs. | K43: = | L43: =Worked_Hours &IF(Worked_Hours=1," hr."," hrs.") -> 104 hrs. | P43: ="÷ "&(8*TimeBase) -> ÷ 8 | Q43: = | R43: =ROUND(Worked_Hours/(8*TimeBase),4)&IF(ROUND(Worked_Hours/(8*TimeBase),4)=1," day"," days") -> 13 days | V43: = | W43: =IF(Gross_Salary="","",AP50&AQ50&AP52&AQ52) -> 13 days, 0 hrs. | AC43: = | AD43: =HourlyRate_ReducedReg*Worked_Hours -> 3754.577273 | AP43: =INT(Worked_Hours/(8*TimeBase)) -> 13 | AQ43: =IF(INT(Worked_Hours/(8*TimeBase))=1," day, "," days, ") -> days,
F45: AWWS Offset | G45: =AWWS_Offset_HoursTotal & AW69 -> 0 hrs. | K45: = | L45: =G45 -> 0 hrs. | P45: ="÷ "&(8*TimeBase) -> ÷ 8 | Q45: = | R45: =ROUND(AWWS_Offset_HoursTotal/(8*TimeBase),4)&IF(ROUND(AWWS_Offset_HoursTotal/(8*TimeBase),4)=1," day"," days") -> 0 days | V45: = | W45: =IF(Gross_Salary="","",AWWS_Offset_Days&AW68&AWWS_Offset_Hours&AY68) -> 0 days, 0 hrs. | AC45: = | AD45: =HourlyRate_ReducedReg*AWWS_Offset_HoursTotal -> 0
AP46: =ROUNDDOWN(MOD(Worked_Hours,(8*TimeBase)),2) -> 0 | AQ46: =IF(MOD(Worked_Hours,(8*TimeBase))=1," hr."," hrs.") -> hrs.
F47: True Dock | G47: =DockHours & IF(DockHours=1," hr."," hrs.") -> 0 hrs. | K47: = | L47: =DockHours &IF(DockHours=1," hr."," hrs.") -> 0 hrs. | P47: ="÷ "&(8*TimeBase) -> ÷ 8 | Q47: = | R47: =ROUND(DockHours/(8*TimeBase),4)&IF(ROUND(DockHours/(8*TimeBase),4)=1," day"," days") -> 0 days | V47: = | W47: =IF(Gross_Salary="","",INT(DockHours/(8*TimeBase))& IF(INT(DockHours/(8*TimeBase))=1," day, "," days, ")&MOD(DockHours,(8*TimeBase))& IF(MOD(DockHours,(8*TimeBase))=1," hr."," hrs.")) -> 0 days, 0 hrs. | AC47: = | AD47: =HourlyRate_ReducedReg*DockHours -> 0 | AP47: =Worked_Hours -> 104
I48: Computation of Maximum Payment Days | AP48: =8*TimeBase -> 8
C49: * | D49: ="The $200 daily max. equates to " & ROUND(Daily_max*2/3,3) & " hrs. of regular pay." -> The $200 daily max. equates to 5.029 hrs. of regular pay. | AP49: =AP47/AP48 -> 13
D50: ="The $200 max. was met " & COUNTIF(EFMLA:EFMLAEnd,">="&(200/EFMLA_Hourly_Rate))&IF(COUNTIF(EFMLA:EFMLAEnd,">="&(200/EFMLA_Hourly_Rate))=1," day"," days")&" of the pay period."&CHAR(10)&CHAR(10)&IF(Gross_Salary="","","Note: The $200 max. is met when the benefit hours per day are at or above "& ROUNDDOWN(200/EFMLA_Hourly_Rate,4)& ", or $200 ÷ $" & ROUNDDOWN(EFMLA_Hourly_Rate,3) & " per hr.") -> The $200 max. was met 9 days of the pay period. Note: The $200 max. is met when the benefit hours per day are at or above 7.5428, or $200 ÷ $26.515 per hr. | AP50: =INT(AP49) -> 13 | AQ50: =IF(AP50=1," day, "," days, ") -> days,
AP52: =ROUND(AP47-AP50*(8*TimeBase),2) -> 0 | AQ52: =IF(AP52=1," hr."," hrs.") -> hrs.
C55: "Save Info to Ledger" saves the employee SSN, Name, E-FMLA benefits, and supplementation information to the Ledger tab. The calculator will automatically display the E-FMLA previously received when the same SSN is entered again.
AR60: =AD36+AD38+AD43 -> 5554.690909
AR63: Daily max
AR64: =IF(Gross_Salary="",0,200/EFMLA_Hourly_Rate) -> 7.542857143
AR65: Hours exceeding daily max | AS65: Days exceeding daily max | AW65: Hours in Standard Pay Period, no AWWS
AR66: =SUMIF(EFMLA:EFMLAEnd,">="&(200/EFMLA_Hourly_Rate)) -> 72 | AS66: =COUNTIF(EFMLA:EFMLAEnd,">="&(200/EFMLA_Hourly_Rate)) -> 9 | AW66: =PayPeriodDays*TimeBase*8 -> 176
AR67: Hours NOT exceeding daily max | AV67: Offset
AR68: =EFMLA_Hours-Hours_ExceedingMax -> 0 | AV68: =ROUNDDOWN(AWWS_Offset_HoursTotal/(8*TimeBase),0) -> 0 | AW68: =IF(ABS(AV68)=1," day, "," days, ") -> days, | AX68: =(AWWS_Offset_HoursTotal)-ROUNDDOWN(AWWS_Offset_HoursTotal/(8*TimeBase),0)*(8*TimeBase) -> 0 | AY68: =IF(ABS(AX68)=1," hr."," hrs.") -> hrs.
AV69: =AW66-AU112 -> 0 | AW69: =IF(ABS(AV69)=1," hr."," hrs.") -> hrs.
AT70: =VLOOKUP(AWWS,AV71:AW86,2,FALSE) -> 1 | AV70: WorkScheduleDescription | AW70: WorkScheduleID
AR71: Pay Period Month/Year | AT71: 1 | AV71: N/A | AW71: 1
AR72: =MONTH(PayPeriod) -> 8 | AV72: 9/8/80 Monday A | AW72: 2
AR73: =YEAR(PayPeriod) -> 2020 | AT73: FALSE | AV73: 9/8/80 Monday B | AW73: 3
AR74: =INT(EFMLA_Hours/(8*TimeBase)) -> 9 | AS74: =IF(INT(EFMLA_Hours/(8*TimeBase))=1," day, "," days, ") -> days, | AT74: FALSE | AV74: 9/8/80 Tuesday A | AW74: 4
AR75: =ROUND(EFMLA_Hours-AR74*(8*TimeBase),2) -> 0 | AS75: =IF(MOD(EFMLA_Hours,(8*TimeBase))=1," hr."," hrs.") -> hrs. | AT75: 72 | AV75: 9/8/80 Tuesday B | AW75: 5
AT76: =SUM(EFMLA:EFMLAEnd) -> 72 | AV76: 9/8/80 Wednesday A | AW76: 6
AT77: =AR74&AS74&AR75&AS75 -> 9 days, 0 hrs. | AV77: 9/8/80 Wednesday B | AW77: 7
AQ78: Supp | AR78: Days In Pay Period | AV78: 9/8/80 Thursday A | AW78: 8 | AZ78: Daily Rate: Regular Pay
AQ79: =ROUNDUP(((Gross_Salary*TimeBase)/PayPeriodDays)/(8*TimeBase)*(EFMLA_Hours),2)-Hidden_Benefit_Pay -> 1063.64 | AR79: =getCompensableDays(AR72,AR73) -> 22 | AV79: 9/8/80 Thursday B | AW79: 9 | AZ79: =Gross_Salary*TimeBase/(PayPeriodDays) -> 318.1818182
AR80: =getFirstDayOfPayPeriod(AR72,AR73) -> 2020-07-31 | AS80: =getLastDayOfPayPeriod(AR72,AR73) -> 2020-08-31 | AT80: =IF(AR80>$AS$80,"",DAY(AR80)) -> 31 | AU80: =IF(TimeBase="",0,getWorkHoursRequired(AR80,WorkSchedID)*TimeBase) -> 8 | AV80: 9/8/80 Friday A | AW80: 10 | AZ80: Hourly Rate: Regular Pay
AQ81: =IF(AND(SuppTime_Days=Hidden_SuppTime_Days,SuppTime_Hours=Hidden_SuppTime_Hours),FALSE,TRUE) -> TRUE | AR81: =AR80+1 -> 2020-08-01 | AT81: 1 | AU81: =IF(TimeBase="",0,getWorkHoursRequired(AR81,WorkSchedID)*TimeBase) -> 0 | AV81: 9/8/80 Friday B | AW81: 11 | AZ81: =AZ79/(8*TimeBase) -> 39.77272727
AR82: =AR81+1 -> 2020-08-02 | AT82: 2 | AU82: =IF(TimeBase="",0,getWorkHoursRequired(AR82,WorkSchedID)*TimeBase) -> 0 | AV82: 4/10/40 Monday | AW82: 12 | AZ82: Daily Rate: E-FMLA (2/3)
AR83: =AR82+1 -> 2020-08-03 | AT83: 3 | AU83: =IF(TimeBase="",0,getWorkHoursRequired(AR83,WorkSchedID)*TimeBase) -> 8 | AV83: 4/10/40 Tuesday | AW83: 13 | AZ83: =Daily_Rate*2/3 -> 212.1212121
AQ84: Supp Hours | AR84: 2020-08-04 | AT84: 4 | AU84: =IF(TimeBase="",0,getWorkHoursRequired(AR84,WorkSchedID)*TimeBase) -> 8 | AV84: 4/10/40 Wednesday | AW84: 14 | AZ84: Hourly Rate: E-FMLA (2/3)
AQ85: =IF(AZ81 = 0, 0,EFMLA_Hours-AW142) -> 26.74285714 | AR85: 2020-08-05 | AT85: 5 | AU85: =IF(TimeBase="",0,getWorkHoursRequired(AR85,WorkSchedID)*TimeBase) -> 8 | AV85: 4/10/40 Thursday | AW85: 15 | AZ85: =AZ83/(8*TimeBase) -> 26.51515152
AQ86: Supp Hours, Rounded | AR86: 2020-08-06 | AT86: 6 | AU86: =IF(TimeBase="",0,getWorkHoursRequired(AR86,WorkSchedID)*TimeBase) -> 8 | AV86: 4/10/40 Friday | AW86: 16 | AZ86: Reduced Hourly Rate: Regular Pay
AQ87: =ROUNDDOWN(AQ85,2) -> 26.74 | AR87: 2020-08-07 | AT87: 7 | AU87: =IF(TimeBase="",0,getWorkHoursRequired(AR87,WorkSchedID)*TimeBase) -> 8 | AZ87: =IF(Reduced_Rate>0,Reduced_Rate,Gross_Salary)*TimeBase/PayPeriodDays/(8*TimeBase) -> 36.10170455
AQ88: Rounded Hours to Days | AR88: 2020-08-08 | AT88: 8 | AU88: =IF(TimeBase="",0,getWorkHoursRequired(AR88,WorkSchedID)*TimeBase) -> 0
AQ89: =AQ87/(8*TimeBase) -> 3.3425 | AR89: 2020-08-09 | AT89: 9 | AU89: =IF(TimeBase="",0,getWorkHoursRequired(AR89,WorkSchedID)*TimeBase) -> 0
AQ90: Days, no remainder | AR90: 2020-08-10 | AT90: 10 | AU90: =IF(TimeBase="",0,getWorkHoursRequired(AR90,WorkSchedID)*TimeBase) -> 8
AQ91: =INT(AQ89) -> 3 | AR91: 2020-08-11 | AT91: 11 | AU91: =IF(TimeBase="",0,getWorkHoursRequired(AR91,WorkSchedID)*TimeBase) -> 8
AQ92: Remainder Hours Formatted | AR92: 2020-08-12 | AT92: 12 | AU92: =IF(TimeBase="",0,getWorkHoursRequired(AR92,WorkSchedID)*TimeBase) -> 8
AQ93: =ROUND(AQ87-(AQ91*8*TimeBase),4) -> 2.74 | AR93: 2020-08-13 | AT93: 13 | AU93: =IF(TimeBase="",0,getWorkHoursRequired(AR93,WorkSchedID)*TimeBase) -> 8 | AW93: =LEN(EmployeeName)-LEN(SUBSTITUTE(EmployeeName," ","")) -> 0
AR94: 2020-08-14 | AT94: 14 | AU94: =IF(TimeBase="",0,getWorkHoursRequired(AR94,WorkSchedID)*TimeBase) -> 8 | AV94: First | AW94: =LEFT(EmployeeName,(IF(AW93=0,1,FIND(" ",EmployeeName,1))-1)) -> 
AR95: 2020-08-15 | AT95: 15 | AU95: =IF(TimeBase="",0,getWorkHoursRequired(AR95,WorkSchedID)*TimeBase) -> 0 | AV95: Middle | AW95: =TRIM(IF(AW93=2,MID(H12,FIND(" ",H12,1),FIND(" ",H12,FIND(" ",H12,1)+1)-FIND(" ",H12,1)),"")) -> 
AQ96: Remainder Hours Formatted | AR96: 2020-08-16 | AT96: 16 | AU96: =IF(TimeBase="",0,getWorkHoursRequired(AR96,WorkSchedID)*TimeBase) -> 0 | AV96: Last | AW96: =TRIM(RIGHT(SUBSTITUTE(EmployeeName," ",REPT(" ",255)),255)) -> 
AR97: 2020-08-17 | AT97: 17 | AU97: =IF(TimeBase="",0,getWorkHoursRequired(AR97,WorkSchedID)*TimeBase) -> 8
AR98: 2020-08-18 | AT98: 18 | AU98: =IF(TimeBase="",0,getWorkHoursRequired(AR98,WorkSchedID)*TimeBase) -> 8
AR99: 2020-08-19 | AT99: 19 | AU99: =IF(TimeBase="",0,getWorkHoursRequired(AR99,WorkSchedID)*TimeBase) -> 8
AR100: 2020-08-20 | AT100: 20 | AU100: =IF(TimeBase="",0,getWorkHoursRequired(AR100,WorkSchedID)*TimeBase) -> 8 | AV100: Destination:
AR101: 2020-08-21 | AT101: 21 | AU101: =IF(TimeBase="",0,getWorkHoursRequired(AR101,WorkSchedID)*TimeBase) -> 8 | AV101: =IF(SuppPercent="","ENTER",CONCATENATE(TEXT(SuppPercent,"#%"),IF(OR(H47=#REF!,SuppPercent=0.5),""," & Sal Chg"))) -> ENTER
AQ102: E-FMLA Benefit Pay | AR102: 2020-08-22 | AT102: 22 | AU102: =IF(TimeBase="",0,getWorkHoursRequired(AR102,WorkSchedID)*TimeBase) -> 0
AR103: 2020-08-23 | AT103: 23 | AU103: =IF(TimeBase="",0,getWorkHoursRequired(AR103,WorkSchedID)*TimeBase) -> 0
AR104: 2020-08-24 | AT104: 24 | AU104: =IF(TimeBase="",0,getWorkHoursRequired(AR104,WorkSchedID)*TimeBase) -> 8
AR105: 2020-08-25 | AT105: 25 | AU105: =IF(TimeBase="",0,getWorkHoursRequired(AR105,WorkSchedID)*TimeBase) -> 8
AQ106: 1800 | AR106: 2020-08-26 | AT106: 26 | AU106: =IF(TimeBase="",0,getWorkHoursRequired(AR106,WorkSchedID)*TimeBase) -> 8
AQ107: =IF(VALUE(SuppTime_Days)*(TimeBase*8)+VALUE(SuppTime_Hours)=VALUE(AQ91)*(TimeBase*8)+VALUE(AQ93),TRUE,FALSE) -> FALSE | AR107: 2020-08-27 | AT107: 27 | AU107: =IF(TimeBase="",0,getWorkHoursRequired(AR107,WorkSchedID)*TimeBase) -> 8
AR108: 2020-08-28 | AT108: 28 | AU108: =IF(TimeBase="",0,getWorkHoursRequired(AR108,WorkSchedID)*TimeBase) -> 8
AR109: 2020-08-29 | AT109: 29 | AU109: =IF(TimeBase="",0,getWorkHoursRequired(AR109,WorkSchedID)*TimeBase) -> 0
AR110: 2020-08-30 | AT110: 30 | AU110: =IF(TimeBase="",0,getWorkHoursRequired(AR110,WorkSchedID)*TimeBase) -> 0
AR111: 2020-08-31 | AT111: 31 | AU111: =IF(TimeBase="",0,getWorkHoursRequired(AR111,WorkSchedID)*TimeBase) -> 8
AU112: =SUM(AU80:AU111)-SUMIF(AT80:AT111,"",AU80:AU111) -> 176
AR114: =Gross_Salary/PayPeriodDays*(RegHoursPossible/(8)) -> 2863.636364 | AV114: WorkScheduleDescription | AW114: WorkScheduleID
AV115: N/A | AW115: 1
AR116: =AF43/((Gross_Salary*TimeBase/PayPeriodDays)/8*TimeBase) -> 0 | AV116: 9/8/80 Monday A | AW116: 2
AR117: True Dock Hours: | AT117: 0 | AU117: =IF(AT117=1," hr."," hrs.") -> hrs. | AV117: 9/8/80 Monday B | AW117: 3
AT118: 0 | AV118: 9/8/80 Tuesday A | AW118: 4
AR119: Hours WWO E-FMLA: | AT119: 0 | AV119: 9/8/80 Tuesday B | AW119: 5
AT120: 0 | AV120: 9/8/80 Wednesday A | AW120: 6
AR121: Reg Hours not WWO: | AT121: 104 | AV121: 9/8/80 Wednesday B | AW121: 7
AT122: 0 | AV122: 9/8/80 Thursday A | AW122: 8
AR123: Hours During E-FMLA: | AT123: =SUM(B20:AG20) -> 72 | AV123: 9/8/80 Thursday B | AW123: 9
AT124: 176 | AV124: 9/8/80 Friday A | AW124: 10
AR125: Days in Pay Period: | AV125: 9/8/80 Friday B | AW125: 11
AT126: =AR79 -> 22 | AV126: 4/10/40 Monday | AW126: 12
AR127: Intermittent E-FMLA | AV127: 4/10/40 Tuesday | AW127: 13
AT128: FALSE | AV128: 4/10/40 Wednesday | AW128: 14
AV129: 4/10/40 Thursday | AW129: 15
AR130: Supplementation Time: | AT130: =IF(Gross_Salary="","",SuppTime_Days& IF(SuppTime_Days=1," Day, "," Days, ")&SuppTime_Hours& IF(SuppTime_Hours=1," Hour"," Hours")) -> 0 Days, 0 Hours | AV130: 4/10/40 Friday | AW130: 16
AR133: Total Regular Hours | AT133: =DuringEFMLA+BeforeAfterEFMLA -> 104 | AU133: =IF(AT133=1," hr."," hrs.") -> hrs.
AT135: Rounded Hours to Days | AW135: 2/3 Days | AY135: maxed out Days
AT136: =AT133/(8*TimeBase) -> 13 | AW136: =INT((Hours_NotExceedingMax*2/3)/(8*TimeBase)) -> 0 | AY136: =INT((Daily_max*2/3*Days_ExceedingMax)/(8*TimeBase)) -> 5
AT137: Days, no remainder | AW137: 2/3 Hours | AY137: maxed out Hours
AT138: =INT(AT136) -> 13 | AW138: =ROUNDUP(Hours_NotExceedingMax*2/3-AW136*(8*TimeBase),2) -> 0 | AY138: =ROUNDUP((Daily_max*2/3*Days_ExceedingMax)-AY136*(8*TimeBase),2) -> 5.26
AT139: Remainder Hours Formatted | AW139: =Hours_NotExceedingMax*2/3-AW136*(8*TimeBase) -> 0 | AY139: =(Daily_max*2/3*Days_ExceedingMax)-AY136*(8*TimeBase) -> 5.257142857
AT140: =ROUND(AT133-(AT138*8*TimeBase),4) -> 0 | AW140: =INT((Hours_NotExceedingMax*2/3+Daily_max*2/3*Days_ExceedingMax)/(8*TimeBase)) -> 5 | AY140: =AW138+AY138 -> 5.26
AW141: Total Benefit Hours | AY141: Total Benefit Days Portion
AR142: Regular Days ,Hours | AT142: =IF(Gross_Salary="","",AT138& IF(AT138=1," Day, "," Days, ")&AT140& IF(AT140=1," Hour"," Hours")) -> 13 Days, 0 Hours | AW142: =(AW136+AY136)*(8*TimeBase)+AW139+AY139 -> 45.25714286 | AY142: =INT(AW142/(8*TimeBase)) -> 5
AW143: =ROUNDUP(AW142,2) -> 45.26 | AY143: Total Benefit Hours Portion
AY144: =AW142-AY142*(8*TimeBase) -> 5.257142857
AT145: Dock Total Hours Due to Partial Supp | AY145: =ROUNDUP(AY144,2) -> 5.26
AT146: =AY150 -> 26.74
AT147: Dock Days Due to Partial Supp
AT148: =INT(AT146/(8*TimeBase)) -> 3 | AY148: =ROUNDUP((Daily_max*Days_ExceedingMax+Hours_NotExceedingMax)*2/3,2) -> 45.26 | AZ148: =IF(AY148=1," hr."," hrs.") -> hrs.
AT149: Dock Hours Due to Partial Supp | AY149: =ROUNDDOWN(SuppTime_Days*(8*TimeBase)+SuppTime_Hours,2) -> 0 | AZ149: =IF(AY149=1," hr."," hrs.") -> hrs.
AT150: =ROUND(AT146-BDockDays_Hidden*(8*TimeBase),2) -> 2.74 | AY150: =ROUND(EFMLA_Hours-AY148-AY149,2) -> 26.74 | AZ150: hrs.
AT153: Supp Total Hrs
AT154: =IF(Custom_Supp,SuppTime_Days*(8*TimeBase)+SuppTime_Hours,AQ85) -> 0
AT155: =IF(AT1523=1," hr."," hrs.") -> hrs.

Sheet Ledger
A1: SSN | B1: Name | C1: E-FMLA Gross Paid | D1: E-FMLA Time | E1: E-FMLA Supplementation Paid | F1: Supplementation Time | G1: E-FMLA Dock | H1: E-FMLA Dock Time | I1: Total E-FMLA Time | J1: Pay Period | K1: AWW Excess/Deficit

Sheet 674DInfo (hidden)
A1: NOTE: Only the information you enter here on this worksheet will be automatically entered onto the 674D.
A2: All other pertinent information required will have to be manually entered onto the 674D.
A3: Verify that all required information has been entered on the 674D before sending to SCO.
A4: ENTER 674D INFORMATION
A5: CBID | C5: =#REF! -> 
A6: SSN | C6: =#REF! -> 
A7: FIRST INITIAL | C7: =LEFT(#REF!,1) -> 
A8: MIDDLE INITIAL | C8: =LEFT(#REF!,1) ->  | F8: dashes
A9: LAST NAME | C9: =#REF! ->  | E9: 16 chars? | F9: 4th char | G9: 8th char | H9: 13th char | I9: Agency | J9: Unit | K9: Class | L9: Serial
A10: POSITION NUMBER #1 | C10: =IF(CONCATENATE(#REF!,"-",#REF!,"-",#REF!,"-",#REF!)="---","",CONCATENATE(#REF!,"-",#REF!,"-",#REF!,"-",#REF!)) ->  | D10: =IF(C10="","",IF(B33,C33,"")) ->  | E10: =IF(LEN(C10)=16,TRUE,FALSE) ->  | F10: =IF(MID(C10,4,1)="-",TRUE, FALSE) ->  | G10: =IF(MID(C10,8,1)="-",TRUE, FALSE) ->  | H10: =IF(MID(C10,13,1)="-",TRUE, FALSE) ->  | I10: =MID(C10,1,3) ->  | J10: =MID(C10,5,3) ->  | K10: =MID(C10,9,4) ->  | L10: =MID(C10,14,3) -> 
A11: POSITION NUMBER #2 | C11: =IF(CONCATENATE(#REF!,"-",#REF!,"-",#REF!,"-",#REF!)="---","",CONCATENATE(#REF!,"-",#REF!,"-",#REF!,"-",#REF!)) ->  | D11: =IF(C11="","",IF(B34,C34,"")) ->  | E11: =IF(LEN(C11)=16,TRUE,FALSE) ->  | F11: =IF(MID(C11,4,1)="-",TRUE, FALSE) ->  | G11: =IF(MID(C11,8,1)="-",TRUE, FALSE) ->  | H11: =IF(MID(C11,13,1)="-",TRUE, FALSE) ->  | I11: =MID(C11,1,3) ->  | J11: =MID(C11,5,3) ->  | K11: =MID(C11,9,4) ->  | L11: =MID(C11,14,3) -> 
A12: PAY PERIOD | B12: Type
B13: Month | C13: =MONTH(ENTER!PayPeriod) -> 8
B14: Year | C14: =YEAR(PayPeriod) ->  | H14: Supplimentation Levels: | K14: Timebase Fraction
A15: SUPPLEMENTATION LEVEL | C15: =#REF! ->  | H15: 75 | K15: 1
A16: TIMEBASE FRACTION | C16: =TimeBase ->  | H16: 100 | K16: 0.2
A17: EMPLOYEE ON NDI | B17: From | K17: 0.4
B18: To | D18: =IF(B36,C36,"") ->  | E18: before from date? | F18: =IF(C18<C17,TRUE,FALSE) -> FALSE | K18: 0.6
A19: AVERAGE HOURS WORKED DURING PREVIOUS 18 MONTHS FOR INTERMITTENT EMPLOYEE | K19: 0.8
A20: EMPLOYEE ON ANNUAL LEAVE PROGRAM | K20: 0.125
A21: SUPPLEMENTATION AMOUNT | B21: Days | C21: =IF(C15=50%,0,VLOOKUP("Days Needed To Supplement:",INDIRECT(F26),2,0)) ->  | K21: 0.25
B22: Hours | C22: =IF(C15=50%,0,VLOOKUP("Hours Needed To Supplement:",INDIRECT(F26),2,0)) ->  | E22: Hours>8? | F22: =IF(C22>=8,TRUE, FALSE) ->  | K22: 0.375
A23: CONTACT PERSON | K23: 0.5
A24: TELEPHONE NUMBER | K24: 0.625
A25: EMAIL ADDRESS | K25: 0.75
F26: ="'"&LinkLocation&"'"&"!"&"A28:B30" ->  | K26: 0.875
A27: GO BACK TO ENTER EMPLOYEE INFORMATION | K27: 0.7
A28: GO TO THE STD. FORM 674D | K28: 0.9
C32: Errors:
A33: Position #1 | B33: =IF(AND(E10,F10, G10, H10), FALSE,TRUE) ->  | C33: Invalid position number. Example: 051-220-1337-930
A34: Position #2 | B34: =IF(AND(E11,F11, G11, H11), FALSE,TRUE) ->  | C34: Invalid position number. Example: 051-220-1337-930
A36: NDI dates | B36: =IF(C18 > 0, F18, FALSE) -> FALSE | C36: "To" date must be after "From" date.
